bitfinex/quotes_SOLUSD_20220130
["timestamp","ask_amount","ask_price","bid_price","bid_amount"]
[1643532561575,6.0,96.093,96.042,0.25]
[1643532561774,0.25,96.092,96.042,0.25]
[1643532564981,0.25,96.092,96.041,16.61765666]
[1643532565182,0.25,96.092,96.006,15.5688]
[1643532565383,0.25,96.092,95.95,185.87]
[1643532565384,6.0,96.089,95.977,2.89482509]
[1643532565583,2.95669142,96.091,95.963,24.6277]
[1643532565584,6.0,96.081,95.963,24.6277]
[1643532565786,152.0734,96.08,95.963,24.6277]
[1643532565987,158.0734,96.08,95.963,24.6277]
[1643532566182,6.0,96.078,95.979,17.32394983]
[1643532566382,6.0,96.07,95.98,22.6716]
[1643532566582,6.0,96.069,95.98,22.9216]
[1643532566785,0.25,96.068,95.98,22.9216]
[1643532566981,24.1275,96.068,95.98,22.9216]
[1643532567182,6.0,96.067,95.98,22.9216]
[1643532567403,6.0,96.058,95.98,22.9216]
[1643532567802,0.25,96.057,95.98,22.9216]
[1643532568005,6.0,96.05,95.98,22.9216]
[1643532568402,0.25,96.049,95.98,22.9216]
[1643532568607,6.0,96.047,95.98,22.9216]
[1643532568803,0.25,96.046,95.98,22.9216]
[1643532571909,6.0,96.047,95.98,22.9216]
[1643532572106,15.624,96.09,95.99,6.0]
[1643532572406,0.25,96.079,95.991,0.25]
[1643532572607,0.25,96.079,95.991,6.0]
[1643532572807,0.25,96.079,95.991,6.25]
[1643532573207,6.0,96.079,95.991,6.25]
[1643532573408,6.0,96.079,95.992,24.8954]
[1643532573606,23.9474,96.089,96.0,6.0]
[1643532573809,23.9474,96.089,96.002,6.0]
[1643532574008,23.9474,96.089,96.003,6.0]
[1643532574207,23.9474,96.089,96.003,6.25]
[1643532574407,23.9474,96.089,96.004,0.25]
[1643532574607,24.8706,96.117,96.004,0.25]
[1643532574608,0.25,96.088,96.004,6.98938865]
[1643532574824,0.25,96.108,96.01,15.618]
[1643532575029,0.25,96.108,96.02,6.0]
[1643532575030,6.0,96.099,96.02,6.0]
[1643532575227,6.0,96.099,96.02,18.01]
[1643532575427,0.25,96.098,96.021,0.25]
[1643532575828,0.25,96.098,96.021,13.2703931]
[1643532576030,6.0,96.095,96.031,6.0]
[1643532576434,0.25,96.094,96.032,0.25]
[1643532576729,0.25,96.094,96.021,13.0203931]
[1643532577130,0.25,96.094,96.022,0.25]
[1643532577532,0.25,96.094,96.031,6.0]
[1643532577932,0.25,96.094,96.032,0.25]
[1643532578431,0.25,96.094,96.021,13.0203931]
[1643532578661,0.25,96.094,96.022,0.25]
[1643532580559,0.25,96.094,96.031,6.0]
[1643532580962,0.25,96.094,96.032,0.25]
[1643532581161,1.44358571,96.114,96.032,0.25]
[1643532581162,1.44358571,96.114,96.032,6.25]
[1643532581366,1.44358571,96.127,96.032,6.25]
[1643532581565,1.44358571,96.131,96.038,6.0]
[1643532581764,1.44358571,96.131,96.042,6.0]
[1643532581962,1.44358571,96.131,96.039,22.6499]
[1643532581963,32.48437161,96.13,96.04,5.04294538]
[1643532582365,1.44358571,96.128,96.041,0.25]
[1643532582566,6.0,96.118,96.041,0.25]
[1643532583167,6.0,96.118,96.04,5.04294538]
[1643532583368,0.25,96.117,96.041,0.25]
[1643532583569,6.25,96.117,96.05,6.0]
[1643532583869,0.25,96.116,96.051,0.25]
[1643532584670,0.25,96.116,96.04,5.04294538]
[1643532584870,0.25,96.116,96.041,0.25]
[1643532585069,6.99587562,96.111,96.041,0.25]
[1643532585270,0.25,96.11,96.041,0.25]
[1643532585569,6.0,96.101,96.041,0.25]
[1643532585770,0.25,96.1,96.041,0.25]
[1643532586170,6.25,96.1,96.05,6.0]
[1643532586371,6.0,96.1,96.051,0.25]
[1643532587670,0.25,96.099,96.041,0.25]
[1643532591373,0.25,96.099,96.05,6.0]
[1643532591777,0.25,96.099,96.04,5.04294538]
[1643532593274,0.25,96.099,96.041,0.25]
[1643532593475,6.0,96.1,96.041,0.25]
[1643532593678,22.6029,96.11,96.041,0.25]
[1643532594775,33.38130396,96.109,96.041,0.25]
[1643532595576,33.38130396,96.109,96.04,5.04294538]
[1643532596177,33.38130396,96.109,96.05,6.0]
[1643532596978,33.38130396,96.109,96.04,5.04294538]
[1643532597177,6.0,96.099,96.04,5.04294538]
[1643532597377,0.25,96.098,96.04,5.04294538]
[1643532598578,0.25,96.108,96.04,5.04294538]
[1643532599578,0.25,96.108,96.05,6.0]
[1643532600980,0.25,96.108,96.04,5.04294538]
[1643532602085,1.69358571,96.109,96.04,5.04294538]
[1643532602283,0.25,96.109,96.04,5.04294538]
[1643532602686,1.69358571,96.109,96.04,5.04294538]
[1643532602885,35.63361394,96.108,96.041,0.25]
[1643532603384,0.25,96.107,96.041,0.25]
[1643532603584,1.69358571,96.107,96.041,0.25]
[1643532604685,1.44358571,96.106,96.041,0.25]
[1643532604893,0.25,96.105,96.041,0.25]
[1643532605586,1.69358571,96.105,96.041,0.25]
[1643532606886,1.44358571,96.101,96.04,5.04294538]
[1643532607285,34.19002823,96.108,96.04,5.04294538]
[1643532607286,0.25,96.1,96.04,5.04294538]
[1643532607486,1.44358571,96.104,96.04,5.04294538]
[1643532608087,1.44358571,96.103,96.04,5.04294538]
[1643532608289,1.44358571,96.105,96.05,6.0]
[1643532608488,34.19002823,96.108,96.05,6.0]
[1643532608688,22.6029,96.11,96.051,0.25]
[1643532608989,0.25,96.109,96.051,0.25]
[1643532609289,22.6029,96.11,96.051,0.25]
[1643532609489,22.6029,96.11,96.04,5.04294538]
[1643532609691,37.49578064,96.109,96.04,5.04294538]
[1643532609890,6.0,96.1,96.041,0.25]
[1643532610091,1.44358571,96.108,96.041,0.25]
[1643532610289,37.49578064,96.109,96.041,0.25]
[1643532610290,1.69358571,96.107,96.041,0.25]
[1643532610490,1.44358571,96.106,96.041,0.25]
[1643532610691,1.44358571,96.105,96.041,0.25]
[1643532611094,0.25,96.104,96.041,0.25]
[1643532611290,1.69358571,96.104,96.041,0.25]
[1643532611490,1.44358571,96.103,96.041,0.25]
[1643532611690,1.44358571,96.102,96.041,0.25]
[1643532611890,1.69358571,96.104,96.05,6.0]
[1643532612093,0.25,96.101,96.05,6.0]
[1643532612320,0.25,96.104,96.051,0.25]
[1643532612519,0.25,96.104,96.04,5.04294538]
[1643532612818,1.44358571,96.101,96.04,5.04294538]
[1643532613022,1.44358571,96.098,96.04,5.04294538]
[1643532613220,1.44358571,96.099,96.04,5.04294538]
[1643532613421,0.25,96.097,96.041,0.25]
[1643532613626,33.8432222,96.101,96.041,0.25]
[1643532614421,1.44358571,96.105,96.041,0.25]
[1643532614622,1.44358571,96.105,96.05,6.0]
[1643532614823,0.25,96.104,96.05,6.0]
[1643532615425,1.69358571,96.104,96.05,6.0]
[1643532615721,0.25,96.104,96.041,0.25]
[1643532616622,1.44358571,96.105,96.041,0.25]
[1643532617024,1.69358571,96.104,96.041,0.25]
[1643532617427,1.69358571,96.104,96.05,6.0]
[1643532618224,1.44358571,96.103,96.05,6.0]
[1643532618425,0.25,96.102,96.05,6.0]
[1643532619025,0.25,96.102,96.041,0.25]
[1643532619626,0.25,96.102,96.05,6.0]
[1643532620426,0.25,96.103,96.041,0.25]
[1643532621125,6.0,96.094,96.041,0.25]
[1643532621324,0.25,96.093,96.041,0.25]
[1643532621525,0.25,96.103,96.041,0.25]
[1643532621726,6.0,96.094,96.041,0.25]
[1643532622128,0.25,96.093,96.041,0.25]
[1643532622528,0.25,96.093,96.04,5.04294538]
[1643532622824,10.64402355,96.092,96.024,1.44358571]
[1643532623028,6.0,96.082,96.024,1.44358571]
[1643532623228,6.0,96.082,96.01,1.44358571]
[1643532623426,6.25,96.081,96.01,1.44358571]
[1643532623628,0.25,96.081,96.008,1.44358571]
[1643532623827,0.25,96.081,96.024,13.2424963]
[1643532624428,0.25,96.081,96.025,23.1977]
[1643532624628,6.0,96.081,96.025,23.1977]
[1643532624828,0.25,96.08,96.025,23.1977]
[1643532626729,0.25,96.08,96.024,13.2424963]
[1643532627129,6.0,96.079,96.024,13.2424963]
[1643532627328,0.25,96.078,96.024,13.2424963]
[1643532627532,27.39263797,96.077,96.024,13.2424963]
[1643532627930,0.25,96.076,96.024,13.2424963]
[1643532628733,0.25,96.076,96.025,0.25]
[1643532628933,0.25,96.077,96.025,11.19]
[1643532629134,0.25,96.077,96.024,13.2424963]
[1643532629334,0.25,96.089,96.024,13.2424963]
[1643532629536,6.0,96.085,96.024,13.2424963]
[1643532629935,6.0,96.079,96.024,13.2424963]
[1643532630140,6.0,96.074,96.024,13.2424963]
[1643532630437,0.25,96.073,96.024,13.2424963]
[1643532632238,36.96256991,96.073,96.024,13.2424963]
[1643532635442,6.0,96.063,96.024,13.2424963]
[1643532635641,59.51116991,96.073,96.024,13.2424963]
[1643532636442,59.26116991,96.073,96.024,13.2424963]
[1643532637143,36.71256991,96.073,96.024,13.2424963]
[1643532637743,0.25,96.072,96.024,13.2424963]
[1643532638585,36.71256991,96.073,96.024,13.2424963]
[1643532638743,0.25,96.072,96.024,13.2424963]
[1643532639948,6.0,96.087,96.024,13.2424963]
[1643532640146,6.0,96.084,96.024,13.2424963]
[1643532640348,0.25,96.083,96.024,13.2424963]
[1643532640548,6.0,96.076,96.024,13.2424963]
[1643532640948,0.25,96.075,96.024,13.2424963]
[1643532641553,6.0,96.076,96.024,13.2424963]
[1643532641751,6.0,96.076,96.025,0.25]
[1643532642551,6.0,96.076,96.024,13.2424963]
[1643532642956,0.25,96.075,96.024,13.2424963]
[1643532647186,0.25,96.075,96.034,6.0]
[1643532647585,0.25,96.075,96.024,13.2424963]
[1643532647783,6.0,96.076,96.024,13.2424963]
[1643532649186,0.25,96.075,96.024,13.2424963]
[1643532652791,6.0,96.07,96.024,13.2424963]
[1643532652990,6.0,96.07,96.003,23.4586]
[1643532653194,6.0,96.066,96.002,15.4913]
[1643532653392,0.25,96.065,96.002,15.4913]
[1643532653593,6.0,96.059,96.002,15.4913]
[1643532653793,23.4305,96.058,96.002,15.4913]
[1643532653992,9.09682512,96.057,96.003,15.68884345]
[1643532654193,6.0,96.048,96.003,15.68884345]
[1643532654393,0.25,96.047,96.003,15.68884345]
[1643532655798,0.25,96.056,96.003,15.68884345]
[1643532656997,6.0,96.047,96.003,15.68884345]
[1643532657395,0.25,96.046,96.003,15.68884345]
[1643532658298,0.25,96.056,96.003,15.68884345]
[1643532659699,0.25,96.057,96.003,15.68884345]
[1643532660100,6.0,96.048,96.003,15.68884345]
[1643532660301,0.25,96.047,96.003,15.68884345]
[1643532661500,0.25,96.051,96.003,15.68884345]
[1643532661701,6.0,96.048,96.003,15.68884345]
[1643532661904,0.25,96.047,96.003,15.68884345]
[1643532663204,0.25,96.057,96.003,15.68884345]
[1643532663804,6.0,96.048,96.003,15.68884345]
[1643532664206,0.25,96.047,96.003,15.68884345]
[1643532666515,0.25,96.047,95.978,1.44358571]
[1643532666716,127.4633,96.047,95.964,373.04765811]
[1643532666918,6.0,96.041,95.964,371.6040724]
[1643532667116,104.4,96.036,95.964,371.6040724]
[1643532667315,0.25,96.035,95.964,371.6040724]
[1643532667515,6.0,96.026,95.965,15.64532081]
[1643532667918,6.25,96.025,95.965,15.64532081]
[1643532668116,24.0184,96.024,95.965,15.64532081]
[1643532668316,0.25,96.023,95.965,15.64532081]
[1643532669016,6.0,96.014,95.965,15.64532081]
[1643532669217,33.26678546,96.013,95.942,1.44358571]
[1643532669419,56.56908546,96.013,95.94,15.9154]
[1643532669617,33.51678546,96.013,95.94,15.9154]
[1643532669817,33.51678546,96.013,95.941,0.25]
[1643532670019,33.51678546,96.013,95.941,23.326]
[1643532670220,33.51678546,96.013,95.942,15.64201024]
[1643532670420,33.51678546,96.013,95.943,0.25]
[1643532671024,0.25,96.013,95.943,0.25]
[1643532671421,6.0,96.028,95.943,0.25]
[1643532671824,0.25,96.027,95.943,0.25]
[1643532672025,6.0,96.02,95.943,0.25]
[1643532672445,6.0,96.017,95.943,0.25]
[1643532672645,6.0,96.017,95.942,15.39201024]
[1643532672845,0.25,96.016,95.942,15.39201024]
[1643532673245,23.1786,96.016,95.942,15.39201024]
[1643532675148,23.1786,96.016,95.943,0.25]
[1643532675646,23.1786,96.016,95.942,15.39201024]
[1643532678753,23.1786,96.016,95.943,2.25649797]
[1643532678950,23.1786,96.016,95.952,6.0]
[1643532679151,23.1786,96.016,95.953,29.8464]
[1643532679651,23.1786,96.016,95.953,23.8464]
[1643532679850,23.1786,96.016,95.954,0.25]
[1643532680251,23.1786,96.016,95.953,23.8464]
[1643532681456,15.632,96.04,95.953,23.8464]
[1643532681654,6.0,96.029,95.953,23.8464]
[1643532682056,6.0,96.028,95.953,23.8464]
[1643532682257,6.0,96.028,95.954,0.25]
[1643532682458,24.1329,96.038,95.954,0.25]
[1643532683669,6.0,96.028,95.954,0.25]
[1643532683963,0.25,96.027,95.954,0.25]
[1643532685259,0.25,96.027,95.964,2.42132824]
[1643532685660,0.25,96.037,95.974,6.0]
[1643532686459,0.25,96.037,95.964,2.42132824]
[1643532687061,6.0,96.028,95.964,2.42132824]
[1643532687363,23.6702,96.027,95.964,2.42132824]
[1643532687860,11.44797336,96.026,95.964,2.42132824]
[1643532688365,0.25,96.025,95.964,2.42132824]
[1643532689164,23.4202,96.027,95.964,2.42132824]
[1643532690165,23.4202,96.027,95.965,0.25]
[1643532690362,0.25,96.026,95.965,0.25]
[1643532694066,0.25,96.026,95.974,6.0]
[1643532695169,0.25,96.026,95.964,2.42132824]
[1643532695869,23.4202,96.027,95.974,6.0]
[1643532696472,73.9984,96.049,95.974,6.0]
[1643532696673,24.3441,96.048,95.974,6.0]
[1643532696976,24.3441,96.048,95.975,0.25]
[1643532697173,24.3441,96.048,95.978,6.0]
[1643532697374,24.3441,96.048,95.964,18.32942824]
[1643532697576,24.3441,96.048,95.965,24.3414]
[1643532697778,0.25,96.038,95.965,24.3414]
[1643532698175,36.27474756,96.038,95.965,24.3414]
[1643532698375,36.27474756,96.038,95.966,0.25]
[1643532698597,36.27474756,96.038,95.965,24.3414]
[1643532698799,22.8458,96.037,95.965,24.3414]
[1643532699198,0.25,96.036,95.965,24.3414]
[1643532702904,22.8458,96.037,95.965,24.3414]
[1643532704105,0.25,96.036,95.965,34.4214]
[1643532704305,0.25,96.036,95.966,0.25]
[1643532705307,0.25,96.036,95.965,24.3414]
[1643532707219,0.25,96.036,95.975,6.0]
[1643532707411,0.25,96.041,95.976,23.9522]
[1643532707613,6.0,96.032,95.976,23.9522]
[1643532707813,0.25,96.031,95.976,23.9522]
[1643532709214,0.25,96.035,95.976,23.9522]
[1643532709614,0.25,96.035,95.969,1.44358571]
[1643532709842,0.25,96.036,95.97,0.25]
[1643532710718,6.25,96.036,95.977,6.0]
[1643532710917,6.25,96.036,95.975,6.0]
[1643532711117,30.1845,96.035,95.979,15.39201024]
[1643532711319,0.25,96.034,95.979,15.39201024]
[1643532712119,6.25,96.034,95.979,15.39201024]
[1643532712323,10.77387504,96.033,95.979,15.39201024]
[1643532712719,0.25,96.032,95.979,15.39201024]
[1643532713921,30.18608324,96.033,95.979,15.39201024]
[1643532716122,6.0,96.023,95.979,15.39201024]
[1643532716322,0.25,96.022,95.979,15.39201024]
[1643532717357,0.25,96.034,95.98,0.25]
[1643532717527,6.0,96.032,95.98,37.2513]
[1643532718026,0.25,96.031,95.98,37.2513]
[1643532718625,0.25,96.031,95.98,37.0013]
[1643532718824,0.25,96.031,95.98,24.2913]
[1643532719024,0.25,96.039,95.98,24.2913]
[1643532719424,6.0,96.037,95.98,24.2913]
[1643532719927,0.25,96.036,95.98,24.2913]
[1643532720325,0.25,96.036,95.981,0.25]
[1643532720726,0.25,96.036,95.979,15.39201024]
[1643532720925,0.25,96.04,95.979,15.39201024]
[1643532721127,6.25,96.04,95.98,0.25]
[1643532721527,0.25,96.04,95.98,23.3362]
[1643532721931,0.25,96.05,95.98,23.3362]
[1643532722325,6.0,96.041,95.98,23.3362]
[1643532722629,0.25,96.05,95.98,23.3362]
[1643532722827,24.2355,96.051,95.98,50.4302]
[1643532723027,1.44358571,96.058,95.99,6.0]
[1643532723229,1.44358571,96.062,95.99,6.0]
[1643532723428,1.44358571,96.062,95.991,23.2637]
[1643532723628,1.44358571,96.063,95.992,6.0]
[1643532723828,1.44358571,96.063,95.993,0.25]
[1643532724029,1.44358571,96.063,95.991,23.2637]
[1643532724227,35.87602558,96.067,95.991,23.2637]
[1643532724228,0.25,96.062,95.991,23.2637]
[1643532724427,24.8133,96.082,95.991,23.2637]
[1643532724428,0.25,96.063,95.991,23.2637]
[1643532724627,6.0,96.054,95.991,23.2637]
[1643532724853,0.25,96.053,95.991,23.2637]
[1643532726035,0.25,96.059,95.991,23.2637]
[1643532726433,0.25,96.06,95.991,23.2637]
[1643532726633,31.35865461,96.06,95.991,23.2637]
[1643532726834,31.35865461,96.06,95.991,23.0137]
[1643532727034,6.0,96.05,95.991,23.0137]
[1643532727234,6.0,96.05,95.992,0.25]
[1643532727433,0.25,96.049,95.992,0.25]
[1643532727635,6.25,96.049,95.992,0.25]
[1643532728436,6.25,96.049,95.991,23.0137]
[1643532728639,15.55,96.049,95.99,6.0]
[1643532728937,15.55,96.049,95.97,1.44358571]
[1643532729137,28.5213,96.048,95.963,1.44358571]
[1643532729340,0.25,96.047,95.963,1.44358571]
[1643532729637,7.17800691,96.038,95.963,1.44358571]
[1643532729837,0.25,96.037,95.98,24.6408]
[1643532730137,0.25,96.037,95.962,1.44358571]
[1643532730937,0.25,96.037,95.965,22.5262]
[1643532731838,0.25,96.037,95.963,1.44358571]
[1643532732140,0.25,96.037,95.958,1.44358571]
[1643532732363,0.25,96.037,95.959,1.44358571]
[1643532732560,6.25,96.037,95.959,1.44358571]
[1643532732964,6.0,96.028,95.957,1.44358571]
[1643532733160,6.0,96.028,95.955,1.44358571]
[1643532733462,6.25,96.027,95.955,1.44358571]
[1643532733860,6.25,96.027,95.953,1.44358571]
[1643532734262,6.25,96.027,95.954,1.44358571]
[1643532734461,6.25,96.027,95.951,24.0071]
[1643532734462,6.25,96.027,95.953,1.44358571]
[1643532734664,6.25,96.027,95.956,1.44358571]
[1643532734863,6.25,96.027,95.955,1.44358571]
[1643532735264,0.25,96.027,95.953,1.44358571]
[1643532735467,0.25,96.027,95.955,1.44358571]
[1643532735666,0.25,96.036,95.955,1.44358571]
[1643532735864,0.25,96.036,95.954,1.44358571]
[1643532736064,6.0,96.027,95.953,1.44358571]
[1643532736265,0.25,96.026,95.953,1.44358571]
[1643532736465,0.25,96.026,95.952,1.44358571]
[1643532738267,0.25,96.026,95.955,1.44358571]
[1643532738667,0.25,96.026,95.965,22.8513]
[1643532739467,0.25,96.026,95.989,6.0]
[1643532739866,0.25,96.036,95.989,6.0]
[1643532740067,6.0,96.027,95.989,6.0]
[1643532740267,0.25,96.026,95.989,6.0]
[1643532740469,0.25,96.036,95.989,6.0]
[1643532741871,28.44666685,96.026,95.989,6.0]
[1643532742270,0.25,96.025,95.989,6.0]
[1643532743470,6.0,96.016,95.989,6.0]
[1643532743970,0.25,96.015,95.989,6.0]
[1643532744573,0.25,96.015,95.951,25.45068571]
[1643532744771,0.25,96.015,95.951,24.0071]
[1643532745172,0.25,96.015,95.949,409.00358423]
[1643532745371,0.25,96.024,95.951,1.44358571]
[1643532745571,6.0,96.015,95.965,12.61664212]
[1643532745774,0.25,96.014,95.965,12.61664212]
[1643532751379,0.25,96.024,95.966,23.8376]
[1643532751581,6.0,96.015,95.966,23.8376]
[1643532751779,0.25,96.014,95.966,23.8376]
[1643532752580,24.889,96.025,95.966,23.8376]
[1643532752782,6.0,96.015,95.966,23.8376]
[1643532753781,0.25,96.014,95.966,23.8376]
[1643532753983,0.25,96.024,95.966,23.8376]
[1643532754482,6.0,96.015,95.966,23.8376]
[1643532754883,0.25,96.014,95.966,23.8376]
[1643532756483,0.25,96.014,95.965,12.61664212]
[1643532759486,0.25,96.014,95.966,23.5116]
[1643532759787,0.25,96.024,95.966,23.5116]
[1643532763994,0.25,96.024,95.965,12.61664212]
[1643532764192,6.0,96.015,95.965,12.61664212]
[1643532764393,0.25,96.014,95.965,12.61664212]
[1643532772427,6.25,96.014,95.965,12.61664212]
[1643532772727,0.25,96.014,95.965,12.61664212]
[1643532772928,24.889,96.025,95.966,24.0651]
[1643532773529,6.0,96.015,95.966,24.0651]
[1643532774929,0.25,96.014,95.966,24.0651]
[1643532778135,0.25,96.024,95.966,24.0651]
[1643532778334,0.25,96.024,95.966,35.8151]
[1643532778536,6.0,96.015,95.966,35.8151]
[1643532779035,0.25,96.014,95.966,35.8151]
[1643532782139,6.0,96.005,95.966,24.0651]
[1643532782339,0.25,96.004,95.966,24.0651]
[1643532783140,0.25,96.004,95.967,12.9142511]
[1643532783543,6.0,96.01,95.967,12.9142511]
[1643532783740,9.83999467,96.009,95.967,12.9142511]
[1643532783944,6.0,96.003,95.967,12.9142511]
[1643532784244,0.25,96.009,95.967,12.9142511]
[1643532784445,0.25,96.002,95.967,12.9142511]
[1643532784642,0.25,96.009,95.967,12.9142511]
[1643532785448,0.25,96.009,95.958,1.44358571]
[1643532785652,0.25,96.023,95.958,1.44358571]
[1643532785849,0.25,96.023,95.95,1.44358571]
[1643532786050,6.0,96.015,95.954,6.0]
[1643532786450,6.25,96.014,95.954,6.0]
[1643532786650,1.02819013,96.013,95.955,17.07835549]
[1643532786849,0.25,96.012,95.955,40.29795549]
[1643532787053,6.0,96.003,95.955,40.29795549]
[1643532787350,0.25,96.002,95.955,40.29795549]
[1643532792476,0.25,96.002,95.955,23.2196]
[1643532793481,0.25,96.002,95.956,13.99367201]
[1643532793679,0.25,96.002,95.956,26.07367201]
[1643532793878,0.25,96.023,95.956,26.07367201]
[1643532794582,1.44358571,96.038,95.956,88.66367201]
[1643532794878,0.1,97.365,95.956,88.66367201]
[1643532794879,1.44358571,96.057,95.973,1.44358571]
[1643532795179,1.44358571,96.074,95.989,1.44358571]
[1643532795480,1.44358571,96.089,95.994,1.44358571]
[1643532795679,1.44358571,96.09,96.0,15.621]
[1643532795880,1.44358571,96.091,96.001,22.5903]
[1643532796079,1.44358571,96.076,96.001,22.5903]
[1643532796279,1.80555691,96.075,96.001,22.5903]
[1643532796482,1.80555691,96.075,96.011,6.0]
[1643532796782,1.55555691,96.075,96.012,12.49365331]
[1643532798280,0.25,96.074,96.012,12.49365331]
[1643532800186,6.0,96.065,96.012,12.49365331]
[1643532800386,0.25,96.064,96.012,12.49365331]
[1643532800986,1.55555691,96.075,96.012,12.49365331]
[1643532801187,0.2,96.217,96.012,12.49365331]
[1643532801188,1.44358571,96.088,96.012,12.49365331]
[1643532801386,1.44358571,96.084,96.022,6.0]
[1643532801588,6.0,96.074,96.012,12.49365331]
[1643532802192,29.72062684,96.073,96.012,12.49365331]
[1643532802388,29.97062684,96.073,96.012,12.49365331]
[1643532806593,24.6083,96.072,96.012,12.49365331]
[1643532806793,0.25,96.071,96.012,12.49365331]
[1643532809595,6.0,96.062,96.012,12.49365331]
[1643532809798,0.25,96.061,96.012,12.49365331]
[1643532810196,0.25,96.061,96.022,6.0]
[1643532811119,0.25,96.071,96.022,6.0]
[1643532811699,0.25,96.071,96.012,12.49365331]
[1643532811899,0.25,96.071,96.013,22.9578]
[1643532812499,0.25,96.071,96.023,6.0]
[1643532812999,0.25,96.071,96.013,22.9578]
[1643532813200,0.25,96.071,96.012,12.49365331]
[1643532813402,6.0,96.062,96.012,12.49365331]
[1643532813600,0.25,96.071,96.012,12.49365331]
[1643532813800,24.6083,96.072,96.022,6.0]
[1643532814401,104.4,96.061,95.969,1.44358571]
[1643532814601,104.4,96.05,95.959,22.641]
[1643532814810,104.4,96.048,95.959,22.641]
[1643532815102,104.4,96.037,95.959,22.641]
[1643532815305,104.4,96.035,95.96,17.59689317]
[1643532815504,104.4,96.026,95.96,17.59689317]
[1643532815704,104.4,96.024,95.96,17.59689317]
[1643532815902,6.0,96.016,95.96,17.59689317]
[1643532816104,6.0,96.014,95.96,17.59689317]
[1643532816304,0.25,96.013,95.96,17.59689317]
[1643532816510,6.0,96.01,95.96,17.59689317]
[1643532816705,0.25,96.013,95.96,17.59689317]
[1643532817904,31.98650761,96.022,95.96,17.59689317]
[1643532818204,6.0,96.012,95.96,17.59689317]
[1643532818405,0.25,96.011,95.96,17.59689317]
[1643532820436,15.635,96.02,95.945,15.8133]
[1643532820637,2.95669142,96.01,95.927,1.44358571]
[1643532820835,0.25,96.009,95.912,1.44358571]
[1643532821036,0.25,96.009,95.911,23.7373]
[1643532821235,2.95669142,96.008,95.911,23.7373]
[1643532821436,6.55015391,95.999,95.912,17.81231129]
[1643532821635,6.0,95.989,95.912,17.81231129]
[1643532821835,23.1153,95.988,95.912,17.81231129]
[1643532822035,6.0,95.978,95.912,17.81231129]
[1643532822235,22.8653,95.977,95.912,17.81231129]
[1643532822438,29.1153,95.977,95.912,17.81231129]
[1643532823836,29.1153,95.977,95.913,0.25]
[1643532824337,23.1153,95.977,95.912,17.81231129]
[1643532824540,6.0,95.967,95.912,17.81231129]
[1643532824838,0.25,95.966,95.912,17.81231129]
[1643532826138,6.0,95.98,95.912,17.81231129]
[1643532826338,0.25,95.966,95.912,17.81231129]
[1643532826938,0.25,95.966,95.913,0.25]
[1643532827339,0.25,95.973,95.913,0.25]
[1643532828340,0.25,95.973,95.912,17.81231129]
[1643532829141,6.25,95.973,95.912,17.81231129]
[1643532831346,6.25,95.973,95.913,0.25]
[1643532831747,23.2255,95.983,95.913,0.25]